[Event "*** SCC Grand Prix: Titled Tuesday Blitz"]
[Site "Chess.com"]
[Date "2020.06.23"]
[Round "9"]
[White "JoliyRoger"]
[Black "Unknown_IM"]
[Result "1-0"]
[WhiteElo "2293"]
[BlackElo "2362"]
[TimeControl "180+1"]
[EndTime "11:46:43 PDT"]
[Termination "JoliyRoger won by checkmate"]

1. Nf3 {[%clk 0:03:00.9]} 1... Nf6 {[%clk 0:02:57.9]} 2. c4 {[%clk 0:03:00.3]}
2... d5 {[%clk 0:02:56.5]} 3. cxd5 {[%clk 0:03:00]} 3... Nxd5 {[%clk 0:02:56.9]}
4. d4 {[%clk 0:02:59.8]} 4... Nc6 {[%clk 0:02:53.7]} 5. e4 {[%clk 0:02:59.7]}
5... Nf6 {[%clk 0:02:51.1]} 6. Nc3 {[%clk 0:03:00]} 6... Bg4 {[%clk 0:02:49.3]}
7. d5 {[%clk 0:02:57.6]} 7... Ne5 {[%clk 0:02:48]} 8. Be2 {[%clk 0:02:57.8]}
8... Bxf3 {[%clk 0:02:47.6]} 9. Bxf3 {[%clk 0:02:54.5]} 9... Nxf3+ {[%clk
0:02:47.1]} 10. Qxf3 {[%clk 0:02:54.9]} 10... Nd7 {[%clk 0:02:38.1]} 11. O-O
{[%clk 0:02:54.2]} 11... g6 {[%clk 0:02:35.3]} 12. Bf4 {[%clk 0:02:34.4]} 12...
Bg7 {[%clk 0:02:32.2]} 13. Qg3 {[%clk 0:02:33.8]} 13... c6 {[%clk 0:02:27]} 14.
Rad1 {[%clk 0:01:59]} 14... O-O {[%clk 0:02:15.4]} 15. Qh3 {[%clk 0:01:28.3]}
15... c5 {[%clk 0:01:55.1]} 16. Rfe1 {[%clk 0:01:19.2]} 16... Ne5 {[%clk
0:01:53.7]} 17. Qg3 {[%clk 0:01:13.7]} 17... Nc4 {[%clk 0:01:42.3]} 18. b3
{[%clk 0:01:13.4]} 18... Nd6 {[%clk 0:01:33.2]} 19. e5 {[%clk 0:01:10.7]} 19...
Nf5 {[%clk 0:01:32.7]} 20. Qd3 {[%clk 0:01:02]} 20... Qa5 {[%clk 0:01:28.8]} 21.
g4 {[%clk 0:00:42.3]} 21... Nd4 {[%clk 0:01:25.7]} 22. Ne4 {[%clk 0:00:27.8]}
22... Rfd8 {[%clk 0:01:19.8]} 23. d6 {[%clk 0:00:28.1]} 23... exd6 {[%clk
0:01:18.8]} 24. exd6 {[%clk 0:00:16.9]} 24... b6 {[%clk 0:01:11.5]} 25. a4
{[%clk 0:00:15.4]} 25... Rd7 {[%clk 0:01:04.8]} 26. Kg2 {[%clk 0:00:12.2]} 26...
Rad8 {[%clk 0:01:02.3]} 27. f3 {[%clk 0:00:12.6]} 27... b5 {[%clk 0:00:58.8]}
28. axb5 {[%clk 0:00:12.1]} 28... Qb6 {[%clk 0:00:54.9]} 29. Qc4 {[%clk
0:00:11.5]} 29... Rc8 {[%clk 0:00:50.4]} 30. b4 {[%clk 0:00:10.6]} 30... Ne6
{[%clk 0:00:46.9]} 31. bxc5 {[%clk 0:00:10.2]} 31... Nxc5 {[%clk 0:00:46.2]} 32.
Nxc5 {[%clk 0:00:09.9]} 32... Rxc5 {[%clk 0:00:46]} 33. Re8+ {[%clk 0:00:09.4]}
33... Bf8 {[%clk 0:00:42.9]} 34. Bh6 {[%clk 0:00:09.9]} 34... Rd8 {[%clk
0:00:42.7]} 35. Rxd8 {[%clk 0:00:07.8]} 35... Qxd8 {[%clk 0:00:41.5]} 36. Qxc5
{[%clk 0:00:08.4]} 36... Bxh6 {[%clk 0:00:41.2]} 37. d7 {[%clk 0:00:08.5]} 37...
Bf8 {[%clk 0:00:37.8]} 38. Qc8 {[%clk 0:00:08.3]} 38... Be7 {[%clk 0:00:38.2]}
39. Re1 {[%clk 0:00:08.7]} 39... Kg7 {[%clk 0:00:26.9]} 40. Qxd8 {[%clk
0:00:09]} 40... Bxd8 {[%clk 0:00:26.8]} 41. Re8 {[%clk 0:00:09.6]} 41... Bb6
{[%clk 0:00:26.8]} 42. d8=Q {[%clk 0:00:10.1]} 42... Bxd8 {[%clk 0:00:26.8]} 43.
Rxd8 {[%clk 0:00:10.8]} 43... Kf6 {[%clk 0:00:26.1]} 44. Ra8 {[%clk 0:00:11.2]}
44... Ke5 {[%clk 0:00:26.5]} 45. Rxa7 {[%clk 0:00:11.6]} 45... Kd6 {[%clk
0:00:27.4]} 46. Rxf7 {[%clk 0:00:11.3]} 46... Kc5 {[%clk 0:00:27.5]} 47. Rxh7
{[%clk 0:00:11.9]} 47... Kxb5 {[%clk 0:00:28.4]} 48. Rg7 {[%clk 0:00:12.5]}
48... Kc5 {[%clk 0:00:28.2]} 49. Rxg6 {[%clk 0:00:13]} 49... Kd4 {[%clk
0:00:28.2]} 50. f4 {[%clk 0:00:13.6]} 50... Ke4 {[%clk 0:00:28.4]} 51. f5 {[%clk
0:00:14.5]} 51... Kf4 {[%clk 0:00:28.8]} 52. h4 {[%clk 0:00:15.4]} 52... Ke5
{[%clk 0:00:29.4]} 53. h5 {[%clk 0:00:16.3]} 53... Kf4 {[%clk 0:00:29.7]} 54. h6
{[%clk 0:00:17.2]} 54... Ke5 {[%clk 0:00:30.2]} 55. h7 {[%clk 0:00:18.1]} 55...
Kf4 {[%clk 0:00:31.1]} 56. h8=Q {[%clk 0:00:19]} 56... Ke3 {[%clk 0:00:30.8]}
57. Qe8+ {[%clk 0:00:19.9]} 57... Kd3 {[%clk 0:00:30.6]} 58. f6 {[%clk
0:00:20.8]} 58... Kd4 {[%clk 0:00:29.9]} 59. f7 {[%clk 0:00:21.7]} 59... Kd5
{[%clk 0:00:29.8]} 60. f8=Q {[%clk 0:00:22.6]} 60... Kd4 {[%clk 0:00:29.4]} 61.
Rd6+ {[%clk 0:00:23.5]} 61... Kc4 {[%clk 0:00:29.7]} 62. Qc8+ {[%clk 0:00:24.4]}
62... Kb4 {[%clk 0:00:30.3]} 63. Qf7 {[%clk 0:00:24.2]} 63... Ka4 {[%clk
0:00:29.9]} 64. Qa7+ {[%clk 0:00:24.3]} 64... Kb4 {[%clk 0:00:29.9]} 65. Rb6#
{[%clk 0:00:24.9]} 1-0

[Event "*** SCC Grand Prix: Titled Tuesday Blitz"]
[Site "Chess.com"]
[Date "2020.06.23"]
[Round "9"]
[White "Guenplen"]
[Black "Maghalashvili"]
[Result "1/2-1/2"]
[WhiteElo "2924"]
[BlackElo "2811"]
[TimeControl "180+1"]
[EndTime "11:46:46 PDT"]
[Termination "Game drawn by repetition"]

1. d4 {[%clk 0:03:00.9]} 1... Nf6 {[%clk 0:02:57.9]} 2. Bf4 {[%clk 0:03:01]}
2... d5 {[%clk 0:02:53.4]} 3. e3 {[%clk 0:03:00.9]} 3... e6 {[%clk 0:02:51]} 4.
Nd2 {[%clk 0:03:00.2]} 4... c5 {[%clk 0:02:49.5]} 5. c3 {[%clk 0:02:59.8]} 5...
Nc6 {[%clk 0:02:48]} 6. Ngf3 {[%clk 0:02:59.1]} 6... Bd6 {[%clk 0:02:46.3]} 7.
Bg3 {[%clk 0:02:58.8]} 7... O-O {[%clk 0:02:44.7]} 8. Bd3 {[%clk 0:02:58.5]}
8... Qe7 {[%clk 0:02:42.5]} 9. Ne5 {[%clk 0:02:57.7]} 9... Nd7 {[%clk
0:02:38.3]} 10. Nxd7 {[%clk 0:02:57.9]} 10... Qxd7 {[%clk 0:02:37.4]} 11. dxc5
{[%clk 0:02:57.7]} 11... Bxc5 {[%clk 0:02:35]} 12. O-O {[%clk 0:02:57.9]} 12...
b6 {[%clk 0:02:31.2]} 13. Qe2 {[%clk 0:02:56.2]} 13... Bb7 {[%clk 0:02:28.9]}
14. Rad1 {[%clk 0:02:56.2]} 14... f5 {[%clk 0:02:22.7]} 15. Nf3 {[%clk 0:02:42]}
15... Qe7 {[%clk 0:02:17.4]} 16. Ne5 {[%clk 0:02:35.9]} 16... Nxe5 {[%clk
0:02:11.4]} 17. Bxe5 {[%clk 0:02:36.8]} 17... Bd6 {[%clk 0:02:10]} 18. Bxd6
{[%clk 0:02:27]} 18... Qxd6 {[%clk 0:02:10.9]} 19. Bc2 {[%clk 0:02:26.7]} 19...
Qc7 {[%clk 0:02:06.7]} 20. Rd2 {[%clk 0:02:17.8]} 20... a5 {[%clk 0:02:04.3]}
21. Rfd1 {[%clk 0:02:17.1]} 21... Ba6 {[%clk 0:02:01.2]} 22. Bd3 {[%clk
0:02:16]} 22... Bxd3 {[%clk 0:01:59.2]} 23. Rxd3 {[%clk 0:02:16.4]} 23... b5
{[%clk 0:01:57.5]} 24. Rd4 {[%clk 0:02:16]} 24... Qc6 {[%clk 0:01:54.2]} 25. h3
{[%clk 0:02:13.7]} 25... Rab8 {[%clk 0:01:51.1]} 26. Qf3 {[%clk 0:02:12.2]}
26... Rfc8 {[%clk 0:01:46.5]} 27. a3 {[%clk 0:02:09.1]} 27... Qe8 {[%clk
0:01:41.6]} 28. g4 {[%clk 0:02:02.2]} 28... fxg4 {[%clk 0:01:38.7]} 29. hxg4
{[%clk 0:02:00.1]} 29... Rc4 {[%clk 0:01:36.2]} 30. Kg2 {[%clk 0:01:58.6]} 30...
Qf7 {[%clk 0:01:27.9]} 31. Qg3 {[%clk 0:01:54.7]} 31... Rf8 {[%clk 0:01:25.1]}
32. R1d3 {[%clk 0:01:15.9]} 32... e5 {[%clk 0:01:09.5]} 33. Rxc4 {[%clk
0:01:10.6]} 33... bxc4 {[%clk 0:01:06]} 34. Rd2 {[%clk 0:01:11]} 34... Qe6
{[%clk 0:01:03]} 35. f3 {[%clk 0:01:08.2]} 35... Rb8 {[%clk 0:00:58.7]} 36. e4
{[%clk 0:01:02.5]} 36... dxe4 {[%clk 0:00:56.5]} 37. fxe4 {[%clk 0:01:03.4]}
37... Rf8 {[%clk 0:00:54.3]} 38. Rf2 {[%clk 0:00:48.1]} 38... Rxf2+ {[%clk
0:00:51.6]} 39. Kxf2 {[%clk 0:00:49]} 39... Qb6+ {[%clk 0:00:47.2]} 40. Kf1
{[%clk 0:00:49.2]} 40... Qf6+ {[%clk 0:00:44.9]} 41. Ke2 {[%clk 0:00:44.9]}
41... Qg5 {[%clk 0:00:42.7]} 42. Qf3 {[%clk 0:00:32.1]} 42... Qc1 {[%clk
0:00:38.3]} 43. Qf5 {[%clk 0:00:32]} 43... Qxb2+ {[%clk 0:00:37.6]} 44. Kf1
{[%clk 0:00:30.3]} 44... Qc1+ {[%clk 0:00:34.2]} 45. Kg2 {[%clk 0:00:30.3]}
45... Qd2+ {[%clk 0:00:33.2]} 46. Kg1 {[%clk 0:00:25.7]} 46... Qe1+ {[%clk
0:00:27.4]} 47. Kg2 {[%clk 0:00:25.4]} 47... Qd2+ {[%clk 0:00:27.5]} 48. Kg1
{[%clk 0:00:25.6]} 48... Qxc3 {[%clk 0:00:26.9]} 49. Qe6+ {[%clk 0:00:19]} 49...
Kf8 {[%clk 0:00:26.7]} 50. Qd6+ {[%clk 0:00:19.4]} 50... Kf7 {[%clk 0:00:26.3]}
51. Qd7+ {[%clk 0:00:19.2]} 51... Kf6 {[%clk 0:00:20.6]} 52. Qf5+ {[%clk
0:00:15.9]} 52... Ke7 {[%clk 0:00:20.5]} 53. Qg5+ {[%clk 0:00:16.8]} 53... Kd6
{[%clk 0:00:20.8]} 54. Qd8+ {[%clk 0:00:16.2]} 54... Kc5 {[%clk 0:00:20.6]} 55.
Qd5+ {[%clk 0:00:13.5]} 55... Kb6 {[%clk 0:00:20.8]} 56. Qd6+ {[%clk 0:00:12.8]}
56... Kb5 {[%clk 0:00:20.6]} 57. Qd7+ {[%clk 0:00:13.3]} 57... Kb6 {[%clk
0:00:20]} 58. Qd6+ {[%clk 0:00:13.4]} 58... Kb7 {[%clk 0:00:20.9]} 59. Qd7+
{[%clk 0:00:13.5]} 59... Kb6 {[%clk 0:00:21.3]} 60. Qd6+ {[%clk 0:00:13.7]}
1/2-1/2

[Event "*** SCC Grand Prix: Titled Tuesday Blitz"]
[Site "Chess.com"]
[Date "2020.06.23"]
[Round "9"]
[White "mamey78"]
[Black "Savva09022009"]
[Result "1/2-1/2"]
[WhiteElo "2347"]
[BlackElo "2445"]
[TimeControl "180+1"]
[EndTime "11:46:46 PDT"]
[Termination "Game drawn by repetition"]

1. e4 {[%clk 0:02:57.5]} 1... c5 {[%clk 0:02:59.2]} 2. Nf3 {[%clk 0:02:56.5]}
2... Nc6 {[%clk 0:02:59]} 3. c3 {[%clk 0:02:56.1]} 3... Nf6 {[%clk 0:02:57.1]}
4. e5 {[%clk 0:02:55.8]} 4... Nd5 {[%clk 0:02:57.5]} 5. d4 {[%clk 0:02:56.7]}
5... Nb6 {[%clk 0:02:58.4]} 6. dxc5 {[%clk 0:02:53.7]} 6... e6 {[%clk
0:02:43.4]} 7. cxb6 {[%clk 0:02:52.1]} 7... Qxb6 {[%clk 0:02:42]} 8. Bd3 {[%clk
0:02:49.8]} 8... Be7 {[%clk 0:02:36]} 9. O-O {[%clk 0:02:47]} 9... O-O {[%clk
0:02:15.4]} 10. Qe2 {[%clk 0:02:43.8]} 10... d5 {[%clk 0:02:08.1]} 11. exd6
{[%clk 0:02:39.2]} 11... Bxd6 {[%clk 0:02:07.2]} 12. Bxh7+ {[%clk 0:02:32.7]}
12... Kxh7 {[%clk 0:02:02.9]} 13. Qd3+ {[%clk 0:02:31.4]} 13... Kg8 {[%clk
0:02:01.4]} 14. Qxd6 {[%clk 0:02:31.3]} 14... e5 {[%clk 0:01:58.6]} 15. Be3
{[%clk 0:02:25.7]} 15... Qxb2 {[%clk 0:01:56.1]} 16. Nbd2 {[%clk 0:02:19.8]}
16... Qxc3 {[%clk 0:01:52.9]} 17. Rac1 {[%clk 0:02:06]} 17... Qa5 {[%clk
0:01:51.2]} 18. Nc4 {[%clk 0:02:01.4]} 18... Qxa2 {[%clk 0:01:49.7]} 19. Ncxe5
{[%clk 0:02:00.8]} 19... Nxe5 {[%clk 0:01:49]} 20. Qxe5 {[%clk 0:01:57.5]} 20...
Be6 {[%clk 0:01:49.9]} 21. Rc7 {[%clk 0:01:48.6]} 21... Rab8 {[%clk 0:01:42.9]}
22. Ra1 {[%clk 0:01:33.3]} 22... Rfd8 {[%clk 0:01:38.1]} 23. h3 {[%clk
0:01:22.3]} 23... Qe2 {[%clk 0:01:33.7]} 24. Bd4 {[%clk 0:01:10.9]} 24... Qxe5
{[%clk 0:01:27.6]} 25. Bxe5 {[%clk 0:01:11.8]} 25... f6 {[%clk 0:01:27.2]} 26.
Bf4 {[%clk 0:01:08.2]} 26... a6 {[%clk 0:01:26.7]} 27. Rb1 {[%clk 0:01:00.4]}
27... Bd5 {[%clk 0:01:20.2]} 28. Re1 {[%clk 0:00:54.9]} 28... Rbc8 {[%clk
0:01:14.6]} 29. Rxc8 {[%clk 0:00:47.7]} 29... Rxc8 {[%clk 0:01:15.5]} 30. Nd4
{[%clk 0:00:47.7]} 30... b5 {[%clk 0:01:11.5]} 31. Nf5 {[%clk 0:00:46]} 31...
Rd8 {[%clk 0:01:05.8]} 32. Re7 {[%clk 0:00:41.4]} 32... Bf7 {[%clk 0:01:03.7]}
33. Nd6 {[%clk 0:00:40.9]} 33... Bd5 {[%clk 0:00:58.6]} 34. Ra7 {[%clk
0:00:30.5]} 34... b4 {[%clk 0:00:56.4]} 35. Rxa6 {[%clk 0:00:29.2]} 35... b3
{[%clk 0:00:56.9]} 36. Rb6 {[%clk 0:00:29.3]} 36... g5 {[%clk 0:00:53.7]} 37.
Be3 {[%clk 0:00:27.2]} 37... b2 {[%clk 0:00:36.9]} 38. Bc5 {[%clk 0:00:18.1]}
38... Kg7 {[%clk 0:00:15.7]} 39. Rxb2 {[%clk 0:00:17.8]} 39... Kg6 {[%clk
0:00:16.3]} 40. g4 {[%clk 0:00:16.2]} 40... Bf3 {[%clk 0:00:15.6]} 41. Rb1
{[%clk 0:00:14.2]} 41... Rh8 {[%clk 0:00:14.1]} 42. Rb3 {[%clk 0:00:08.5]} 42...
Rxh3 {[%clk 0:00:12.2]} 43. Rxf3 {[%clk 0:00:08.6]} 43... Rxf3 {[%clk
0:00:11.4]} 44. Be3 {[%clk 0:00:09.5]} 44... Rh3 {[%clk 0:00:09]} 45. Kg2 {[%clk
0:00:09.6]} 45... Rh8 {[%clk 0:00:09.4]} 46. Ne4 {[%clk 0:00:09.2]} 46... Re8
{[%clk 0:00:09.2]} 47. Kf3 {[%clk 0:00:08.4]} 47... Rd8 {[%clk 0:00:09.7]} 48.
Bd2 {[%clk 0:00:07]} 48... Rd3+ {[%clk 0:00:09.4]} 49. Be3 {[%clk 0:00:07]}
49... Rd8 {[%clk 0:00:10.1]} 50. Bd2 {[%clk 0:00:06.2]} 50... Rd3+ {[%clk
0:00:10]} 51. Be3 {[%clk 0:00:06.3]} 51... Rd8 {[%clk 0:00:10.9]} 1/2-1/2

[Event "*** SCC Grand Prix: Titled Tuesday Blitz"]
[Site "Chess.com"]
[Date "2020.06.23"]
[Round "9"]
[White "vladislavkovalev"]
[Black "Chepaschess"]
[Result "1/2-1/2"]
[WhiteElo "2921"]
[BlackElo "2860"]
[TimeControl "180+1"]
[EndTime "11:46:47 PDT"]
[Termination "Game drawn by repetition"]

1. e4 {[%clk 0:03:00.9]} 1... c5 {[%clk 0:02:59.3]} 2. Be2 {[%clk 0:03:01.5]}
2... Nc6 {[%clk 0:02:58.1]} 3. d3 {[%clk 0:03:02.4]} 3... g6 {[%clk 0:02:49.8]}
4. f4 {[%clk 0:03:02.9]} 4... Bg7 {[%clk 0:02:50.2]} 5. Nf3 {[%clk 0:03:03.8]}
5... e6 {[%clk 0:02:45.6]} 6. c3 {[%clk 0:03:04.3]} 6... Nge7 {[%clk 0:02:46.1]}
7. Be3 {[%clk 0:03:04.7]} 7... b6 {[%clk 0:02:41.6]} 8. d4 {[%clk 0:03:04.6]}
8... cxd4 {[%clk 0:02:37.2]} 9. cxd4 {[%clk 0:03:05.5]} 9... d5 {[%clk
0:02:34.5]} 10. e5 {[%clk 0:03:05.9]} 10... O-O {[%clk 0:02:30.9]} 11. O-O
{[%clk 0:03:05.9]} 11... f6 {[%clk 0:02:28.9]} 12. exf6 {[%clk 0:02:49.2]} 12...
Bxf6 {[%clk 0:02:27.1]} 13. Nc3 {[%clk 0:02:49.4]} 13... Nf5 {[%clk 0:02:23.4]}
14. Bf2 {[%clk 0:02:49.2]} 14... Bg7 {[%clk 0:02:22.4]} 15. Rc1 {[%clk
0:02:45.2]} 15... Bd7 {[%clk 0:02:22.4]} 16. Qd2 {[%clk 0:02:29.3]} 16... Nd6
{[%clk 0:02:22.1]} 17. Bd3 {[%clk 0:02:25.1]} 17... Rc8 {[%clk 0:02:18.8]} 18.
Ne5 {[%clk 0:02:22]} 18... Nxe5 {[%clk 0:02:15]} 19. fxe5 {[%clk 0:02:20.5]}
19... Nc4 {[%clk 0:02:10.7]} 20. Qe2 {[%clk 0:02:20.2]} 20... Bh6 {[%clk
0:02:07.5]} 21. Rc2 {[%clk 0:02:07.1]} 21... Qg5 {[%clk 0:02:04.3]} 22. Nd1
{[%clk 0:01:43.2]} 22... b5 {[%clk 0:01:58.1]} 23. b3 {[%clk 0:01:38.7]} 23...
a5 {[%clk 0:01:51.8]} 24. h3 {[%clk 0:01:29.8]} 24... a4 {[%clk 0:01:48.2]} 25.
g3 {[%clk 0:00:45.8]} 25... axb3 {[%clk 0:01:44.5]} 26. axb3 {[%clk 0:00:46.7]}
26... Ra8 {[%clk 0:01:29.2]} 27. Kg2 {[%clk 0:00:44.9]} 27... Qe7 {[%clk
0:01:24]} 28. Be1 {[%clk 0:00:37.7]} 28... Rxf1 {[%clk 0:01:17.7]} 29. Kxf1
{[%clk 0:00:38.1]} 29... Rf8+ {[%clk 0:01:14]} 30. Kg2 {[%clk 0:00:38.7]} 30...
Qa3 {[%clk 0:00:59.1]} 31. Ra2 {[%clk 0:00:29.6]} 31... Qxb3 {[%clk 0:00:56.8]}
32. Ra7 {[%clk 0:00:30.3]} 32... Rf7 {[%clk 0:00:51.8]} 33. Nf2 {[%clk
0:00:24.3]} 33... Ne3+ {[%clk 0:00:48.5]} 34. Kh2 {[%clk 0:00:24.6]} 34... Kg7
{[%clk 0:00:45.8]} 35. Ra8 {[%clk 0:00:19.1]} 35... Bc6 {[%clk 0:00:42.3]} 36.
Ra6 {[%clk 0:00:17.2]} 36... Bd7 {[%clk 0:00:41.5]} 37. Ra8 {[%clk 0:00:17.8]}
37... Bg5 {[%clk 0:00:33]} 38. h4 {[%clk 0:00:15.9]} 38... Bh6 {[%clk
0:00:31.1]} 39. Ra7 {[%clk 0:00:13.6]} 39... Nf5 {[%clk 0:00:27.9]} 40. Bxf5
{[%clk 0:00:11.3]} 40... gxf5 {[%clk 0:00:27.9]} 41. Nd3 {[%clk 0:00:09.4]}
41... Qc4 {[%clk 0:00:25]} 42. Bd2 {[%clk 0:00:07.5]} 42... Qxd4 {[%clk
0:00:25.1]} 43. Bxh6+ {[%clk 0:00:07.5]} 43... Kxh6 {[%clk 0:00:26]} 44. Qd2+
{[%clk 0:00:03.5]} 44... Kg7 {[%clk 0:00:23]} 45. Qg5+ {[%clk 0:00:03.6]} 45...
Kf8 {[%clk 0:00:20.9]} 46. Ra8+ {[%clk 0:00:02.2]} 46... Be8 {[%clk 0:00:19.6]}
47. Qh6+ {[%clk 0:00:02.8]} 47... Ke7 {[%clk 0:00:17.3]} 48. Qg5+ {[%clk
0:00:03.5]} 48... Kf8 {[%clk 0:00:17.6]} 49. Qh6+ {[%clk 0:00:03.8]} 49... Ke7
{[%clk 0:00:18]} 50. Nf4 {[%clk 0:00:04.1]} 50... Qf2+ {[%clk 0:00:14.6]} 51.
Kh3 {[%clk 0:00:04.1]} 51... Qf1+ {[%clk 0:00:14]} 52. Kh2 {[%clk 0:00:04.8]}
52... Qf2+ {[%clk 0:00:14.6]} 53. Kh3 {[%clk 0:00:05.5]} 53... Qf1+ {[%clk
0:00:14.8]} 54. Kh2 {[%clk 0:00:06.2]} 54... Qf2+ {[%clk 0:00:15.3]} 1/2-1/2

[Event "*** SCC Grand Prix: Titled Tuesday Blitz"]
[Site "Chess.com"]
[Date "2020.06.23"]
[Round "9"]
[White "KazakhFighter04"]
[Black "deribas12345"]
[Result "0-1"]
[WhiteElo "2732"]
[BlackElo "2581"]
[TimeControl "180+1"]
[EndTime "11:46:47 PDT"]
[Termination "deribas12345 won by resignation"]

1. e4 {[%clk 0:03:00.9]} 1... e6 {[%clk 0:02:59.5]} 2. d4 {[%clk 0:03:00.4]}
2... d5 {[%clk 0:03:00.4]} 3. Bd3 {[%clk 0:03:00.7]} 3... c5 {[%clk 0:02:56.1]}
4. exd5 {[%clk 0:03:00.3]} 4... exd5 {[%clk 0:02:56.4]} 5. c3 {[%clk 0:02:58.9]}
5... Nc6 {[%clk 0:02:52.5]} 6. Nf3 {[%clk 0:02:57.6]} 6... Bd6 {[%clk
0:02:52.5]} 7. O-O {[%clk 0:02:56.1]} 7... Nge7 {[%clk 0:02:52.6]} 8. dxc5
{[%clk 0:02:56.1]} 8... Bxc5 {[%clk 0:02:52.5]} 9. Nbd2 {[%clk 0:02:57]} 9...
O-O {[%clk 0:02:52.2]} 10. h3 {[%clk 0:02:56.9]} 10... Bb6 {[%clk 0:02:46.2]}
11. Nb3 {[%clk 0:02:56]} 11... Bf5 {[%clk 0:02:40.4]} 12. Re1 {[%clk 0:02:51.1]}
12... Bxd3 {[%clk 0:02:32.4]} 13. Qxd3 {[%clk 0:02:52]} 13... Ng6 {[%clk
0:02:32.5]} 14. Be3 {[%clk 0:02:50.3]} 14... Bxe3 {[%clk 0:02:29.3]} 15. Qxe3
{[%clk 0:02:49]} 15... Qd7 {[%clk 0:02:28.7]} 16. Rad1 {[%clk 0:02:46.5]} 16...
Rfe8 {[%clk 0:02:27.8]} 17. Qd2 {[%clk 0:02:44.5]} 17... Red8 {[%clk 0:02:25.2]}
18. Nfd4 {[%clk 0:02:39.3]} 18... h6 {[%clk 0:02:20.4]} 19. Nc5 {[%clk
0:02:30.3]} 19... Qc7 {[%clk 0:02:19.2]} 20. Nd3 {[%clk 0:02:29.1]} 20... Nxd4
{[%clk 0:02:17.8]} 21. cxd4 {[%clk 0:02:30]} 21... Re8 {[%clk 0:02:13.2]} 22.
Ne5 {[%clk 0:02:24.3]} 22... Nxe5 {[%clk 0:02:08.1]} 23. dxe5 {[%clk 0:02:16.2]}
23... Rxe5 {[%clk 0:02:08.2]} 24. Rxe5 {[%clk 0:02:16.7]} 24... Qxe5 {[%clk
0:02:09]} 25. Qxd5 {[%clk 0:02:17.3]} 25... Qxb2 {[%clk 0:02:06.2]} 26. Re1
{[%clk 0:02:16.1]} 26... Rc8 {[%clk 0:01:57.7]} 27. g3 {[%clk 0:02:07]} 27...
Rc1 {[%clk 0:01:50.5]} 28. Rxc1 {[%clk 0:01:48]} 28... Qxc1+ {[%clk 0:01:51.4]}
29. Kh2 {[%clk 0:01:48.6]} 29... Qc6 {[%clk 0:01:50.7]} 30. Qd4 {[%clk
0:01:44.3]} 30... a6 {[%clk 0:01:44.8]} 31. a4 {[%clk 0:01:43.6]} 31... b5
{[%clk 0:01:40.6]} 32. axb5 {[%clk 0:01:43]} 32... axb5 {[%clk 0:01:39.9]} 33.
h4 {[%clk 0:01:42]} 33... Qc4 {[%clk 0:01:30.6]} 34. Qd8+ {[%clk 0:01:26.3]}
34... Kh7 {[%clk 0:01:30.2]} 35. Qd7 {[%clk 0:01:26.3]} 35... b4 {[%clk
0:01:21.6]} 36. Qf5+ {[%clk 0:01:25.6]} 36... g6 {[%clk 0:01:21.2]} 37. Qf6
{[%clk 0:01:26]} 37... Qe6 {[%clk 0:01:11.8]} 38. Qd4 {[%clk 0:01:22.2]} 38...
b3 {[%clk 0:01:11.8]} 39. Qc3 {[%clk 0:01:20.6]} 39... Qb6 {[%clk 0:01:08.7]}
40. Qb2 {[%clk 0:01:16.6]} 40... Qb4 {[%clk 0:01:06.6]} 41. Qf6 {[%clk
0:01:14.7]} 41... Qc4 {[%clk 0:01:04.4]} 42. h5 {[%clk 0:01:13.8]} 42... gxh5
{[%clk 0:01:03.4]} 43. Qf5+ {[%clk 0:01:12]} 43... Kg7 {[%clk 0:01:03.4]} 44.
Qxh5 {[%clk 0:01:12.1]} 44... Qd4 {[%clk 0:00:56.6]} 45. f4 {[%clk 0:01:09.9]}
45... b2 {[%clk 0:00:50.4]} 46. Qg4+ {[%clk 0:01:09.7]} 46... Kf6 {[%clk
0:00:49.5]} 47. Qh4+ {[%clk 0:01:09.7]} 47... Kf5 {[%clk 0:00:44]} 48. Qh5+
{[%clk 0:01:08.3]} 48... Ke4 {[%clk 0:00:42.6]} 49. Qe2+ {[%clk 0:01:08.3]}
49... Kd5 {[%clk 0:00:41.4]} 50. Qb5+ {[%clk 0:01:08.8]} 50... Kd6 {[%clk
0:00:39.6]} 51. Qb8+ {[%clk 0:01:08.4]} 51... Kc5 {[%clk 0:00:38]} 52. Qc7+
{[%clk 0:01:06.2]} 52... Kb4 {[%clk 0:00:36.5]} 53. Qb7+ {[%clk 0:01:06.1]}
53... Kc3 {[%clk 0:00:36.4]} 54. Qc7+ {[%clk 0:00:58.8]} 54... Kd2 {[%clk
0:00:33.4]} 55. Qa5+ {[%clk 0:00:58.8]} 55... Kc1 {[%clk 0:00:30.9]} 56. Qc7+
{[%clk 0:00:52.8]} 56... Kd1 {[%clk 0:00:27.2]} 57. Qb7 {[%clk 0:00:52.3]} 57...
Kc2 {[%clk 0:00:20.1]} 58. Qc6+ {[%clk 0:00:45.9]} 58... Qc3 {[%clk 0:00:20.2]}
59. Qe4+ {[%clk 0:00:36.1]} 59... Qd3 {[%clk 0:00:19.5]} 60. Qc6+ {[%clk
0:00:34.5]} 60... Kd1 {[%clk 0:00:17.3]} 61. Qh1+ {[%clk 0:00:31.2]} 61... Kd2
{[%clk 0:00:17.3]} 62. Qg2+ {[%clk 0:00:26.5]} 62... Qe2 {[%clk 0:00:17.1]} 0-1